bitfinex/quotes_SOLUSD_20220212
["timestamp","ask_amount","ask_price","bid_price","bid_amount"]
[1644637253955,24.3426,96.877,96.838,1.46011833]
[1644637254156,5.162,96.876,96.838,1.46011833]
[1644637256760,24.3426,96.877,96.839,1.46011833]
[1644637257959,24.3426,96.877,96.839,19.6888743]
[1644637258160,5.162,96.899,96.839,18.22875597]
[1644637258360,15.4898,96.92,96.851,1.46011833]
[1644637258361,5.16,96.909,96.851,1.46011833]
[1644637258560,5.16,96.909,96.84,2.38366791]
[1644637258561,5.16,96.919,96.853,1.46011833]
[1644637258761,5.16,96.919,96.855,1.46011833]
[1644637258966,5.16,96.919,96.857,1.46011833]
[1644637259166,37.71303475,96.918,96.856,1.46011833]
[1644637259362,5.16,96.917,96.856,1.46011833]
[1644637259761,5.16,96.917,96.855,1.46011833]
[1644637260164,5.16,96.917,96.854,1.46011833]
[1644637260364,4.66,96.917,96.854,1.46011833]
[1644637260564,4.66,96.917,96.851,1.46011833]
[1644637260764,4.66,96.917,96.855,2.38366791]
[1644637260963,4.66,96.917,96.858,1.46011833]
[1644637261163,4.66,96.917,96.854,1.46011833]
[1644637261365,4.66,96.917,96.851,1.46011833]
[1644637261563,4.66,96.917,96.844,2.38366791]
[1644637261564,4.66,96.917,96.849,1.46011833]
[1644637262365,4.66,96.917,96.85,1.46011833]
[1644637263767,4.66,96.917,96.85,0.96011833]
[1644637263966,4.66,96.917,96.844,2.38366791]
[1644637269201,4.66,96.917,96.84,24.3322]
[1644637274003,15.4899,96.91,96.84,24.3322]
[1644637274202,5.16,96.909,96.84,24.3322]
[1644637274603,22.574,96.908,96.84,24.3322]
[1644637274802,5.16,96.907,96.84,24.3322]
[1644637275807,15.4914,96.9,96.84,24.3322]
[1644637276005,36.40913162,96.898,96.84,24.3322]
[1644637276203,5.16,96.897,96.828,23.7921]
[1644637276404,23.3525,96.896,96.819,2.38366791]
[1644637276604,5.162,96.895,96.819,2.38366791]
[1644637276804,14.88,96.89,96.819,2.38366791]
[1644637277006,5.162,96.889,96.819,2.38366791]
[1644637278706,23.3525,96.896,96.82,5.162]
[1644637278907,23.3525,96.896,96.82,8.50591266]
[1644637279109,23.3525,96.896,96.83,15.4886]
[1644637279307,23.3525,96.896,96.831,24.5513]
[1644637279308,5.162,96.895,96.831,24.5513]
[1644637279508,5.162,96.895,96.832,18.80952367]
[1644637279808,5.162,96.895,96.832,21.19319158]
[1644637280008,5.162,96.895,96.833,2.38366791]
[1644637280509,5.162,96.895,96.84,15.4871]
[1644637280711,29.6746,96.926,96.84,15.4871]
[1644637280911,29.6746,96.926,96.841,2.38366791]
[1644637281411,39.8331029,96.925,96.841,2.38366791]
[1644637281611,5.16,96.924,96.842,23.3447]
[1644637282012,15.4886,96.92,96.843,2.38366791]
[1644637282210,5.16,96.919,96.843,2.38366791]
[1644637284610,5.16,96.924,96.843,2.38366791]
[1644637286813,15.4882,96.92,96.843,2.38366791]
[1644637287011,5.16,96.919,96.843,2.38366791]
[1644637289514,15.4882,96.92,96.843,2.38366791]
[1644637289714,5.16,96.924,96.843,2.38366791]
[1644637292420,5.16,96.924,96.85,15.4856]
[1644637292621,5.16,96.925,96.85,23.9156]
[1644637292843,5.16,96.925,96.851,7.54366791]
[1644637293044,5.16,96.949,96.851,7.54366791]
[1644637293248,5.159,96.959,96.852,5.72541847]
[1644637293444,5.159,96.962,96.853,32.28725056]
[1644637293643,5.159,96.962,96.871,34.31855056]
[1644637293843,5.159,96.962,96.872,23.7865]
[1644637294544,5.159,96.962,96.873,2.38366791]
[1644637294744,5.159,96.962,96.874,5.159]
[1644637295147,5.159,96.962,96.88,14.88]
[1644637295547,5.159,96.962,96.89,15.4783]
[1644637295748,5.159,96.962,96.891,23.7228]
[1644637295951,5.159,96.962,96.892,5.158]
[1644637296150,5.159,96.962,96.892,7.54166791]
[1644637296553,5.159,96.962,96.893,2.38366791]
[1644637297850,5.159,96.962,96.9,15.4777]
[1644637298051,5.159,96.962,96.901,18.80952367]
[1644637298252,46.8449,96.963,96.902,5.158]
[1644637298452,46.8449,96.963,96.902,7.54166791]
[1644637298952,5.158,96.989,96.903,2.38366791]
[1644637299157,22.653,96.988,96.904,28.8757]
[1644637299352,42.74809195,96.986,96.904,28.8757]
[1644637299552,42.74809195,96.986,96.905,2.38366791]
[1644637299752,5.157,96.985,96.91,15.4762]
[1644637299952,22.653,96.988,96.91,15.4762]
[1644637300153,22.653,96.988,96.911,7.54066791]
[1644637300354,5.157,97.008,96.911,2.38366791]
[1644637300552,23.1235,97.007,96.912,2.38366791]
[1644637300752,5.156,97.006,96.93,15.4721]
[1644637300952,36.17470785,97.005,96.932,34.31855056]
[1644637301355,36.17470785,97.005,96.933,2.38366791]
[1644637302755,5.156,97.004,96.94,15.4708]
[1644637302957,5.156,97.005,96.94,15.4708]
[1644637303157,5.156,97.006,96.941,2.38366791]
[1644637303359,23.1235,97.007,96.941,7.53966791]
[1644637303557,23.1235,97.007,96.941,2.38366791]
[1644637303758,23.1235,97.007,96.942,7.53966791]
[1644637303959,5.156,97.006,96.942,2.38366791]
[1644637304159,5.156,97.006,96.95,15.4695]
[1644637304361,30.38409682,97.04,96.95,15.4695]
[1644637304362,5.156,97.039,96.95,15.4695]
[1644637304562,28.3731,97.039,96.951,31.91926791]
[1644637304959,28.3731,97.039,96.952,2.38366791]
[1644637305160,48.57635411,97.038,96.953,5.154]
[1644637305361,5.154,97.037,96.952,2.38366791]
[1644637305559,5.154,97.037,96.954,2.38366791]
[1644637305760,5.154,97.037,96.97,15.4655]
[1644637305961,5.154,97.037,96.971,18.80952367]
[1644637306164,5.154,97.037,96.971,21.19319158]
[1644637306363,5.154,97.037,96.972,2.38366791]
[1644637307067,5.154,97.038,96.98,15.465]
[1644637307463,5.154,97.038,96.981,2.38366791]
[1644637308464,5.154,97.038,96.98,15.465]
[1644637308867,0.03499682,97.04,96.981,5.154]
[1644637309064,22.5123,97.058,96.99,15.4625]
[1644637309264,0.03499682,97.05,96.99,15.4625]
[1644637309466,5.152,97.057,96.99,15.4625]
[1644637309667,38.23793928,97.054,96.99,15.4625]
[1644637309863,5.152,97.057,96.99,15.4625]
[1644637310063,5.152,97.054,96.99,15.4625]
[1644637310267,0.03499682,97.06,97.01,15.4599]
[1644637310564,0.03499682,97.07,97.011,24.2615]
[1644637310764,5.152,97.087,97.011,24.2615]
[1644637310964,5.152,97.078,97.012,34.31855056]
[1644637311165,5.152,97.078,97.011,24.2615]
[1644637311166,37.53911318,97.086,97.011,24.2615]
[1644637311368,5.152,97.077,97.011,24.2615]
[1644637311664,0.03499682,97.08,96.981,27.9431]
[1644637311665,22.9389,97.076,96.981,27.9431]
[1644637311965,0.03499682,97.07,96.981,5.152]
[1644637312164,5.152,97.069,96.981,5.152]
[1644637312367,5.152,97.069,96.978,41.47781333]
[1644637312564,5.152,97.069,96.98,15.4649]
[1644637313169,5.152,97.069,96.981,23.0228]
[1644637313566,5.152,97.069,96.982,5.152]
[1644637313766,5.152,97.069,96.99,15.4628]
[1644637318070,5.152,97.069,96.99,30.3428]
[1644637318872,0.03499682,97.07,96.991,5.152]
[1644637319092,36.32075852,97.089,97.011,11.6502609]
[1644637319275,0.03499682,97.07,97.012,29.2068]
[1644637319473,24.3746,97.088,97.012,29.2068]
[1644637319675,0.03499682,97.08,97.012,29.2068]
[1644637320074,5.151,97.087,97.012,29.2068]
[1644637320874,5.151,97.087,97.02,15.4572]
[1644637325381,5.151,97.087,97.021,2.38366791]
[1644637325678,24.3746,97.088,97.03,15.4561]
[1644637326900,24.3746,97.088,97.031,2.38366791]
[1644637327504,24.10017629,97.088,97.031,2.38366791]
[1644637328607,24.10017629,97.088,97.02,15.4588]
[1644637328805,5.151,97.087,97.02,15.4588]
[1644637334610,14.651,97.087,97.001,5.151]
[1644637334812,0.03499682,97.08,96.991,2.38366791]
[1644637335011,14.88,97.07,96.975,2.38366791]
[1644637335210,0.03499682,97.06,96.953,5.152]
[1644637335410,14.88,97.05,96.951,5.154]
[1644637335613,14.88,97.05,96.952,44.20153528]
[1644637335614,0.03499682,97.04,96.952,44.20153528]
[1644637335811,5.154,97.039,96.952,44.20153528]
[1644637336011,5.154,97.039,96.953,5.154]
[1644637336211,5.154,97.039,96.953,7.53766791]
[1644637336412,5.154,97.039,96.954,2.38366791]
[1644637336611,0.03499682,97.04,96.954,25.67146791]
[1644637337013,0.03499682,97.04,96.955,2.38366791]
[1644637337412,0.03499682,97.04,96.96,15.4679]
[1644637337614,5.154,97.039,96.96,15.4679]
[1644637339014,5.154,97.039,96.97,15.4662]
[1644637339415,5.154,97.039,96.971,2.38366791]
[1644637339613,0.03499682,97.04,96.971,7.53766791]
[1644637339813,0.03499682,97.04,96.972,23.3618]
[1644637340015,0.03499682,97.04,96.973,5.154]
[1644637340215,0.03499682,97.04,96.973,7.53766791]
[1644637340615,0.03499682,97.04,96.974,2.38366791]
[1644637340818,0.03499682,97.04,96.98,15.4642]
[1644637341416,0.03499682,97.04,96.975,5.154]
[1644637341616,5.154,97.039,96.975,5.154]
[1644637344121,5.154,97.039,96.972,23.3618]
[1644637344521,5.154,97.039,96.98,15.4648]
[1644637344721,0.03499682,97.04,96.98,15.4648]
[1644637345319,0.03499682,97.04,96.972,23.3618]
[1644637345521,5.154,97.039,96.972,23.3618]
[1644637346822,0.03499682,97.04,96.972,23.3618]
[1644637347823,0.03499682,97.04,96.972,13.3618]
[1644637348022,5.154,97.039,96.972,13.3618]
[1644637348824,24.2217,97.038,96.972,13.3618]
[1644637349022,24.2217,97.038,96.98,15.4646]
[1644637349426,24.2217,97.038,96.981,2.38366791]
[1644637349625,24.2217,97.038,96.982,8.92653895]
[1644637350023,24.2217,97.038,96.983,2.38366791]
[1644637350523,0.03499682,97.04,96.983,2.38366791]
[1644637350724,0.03499682,97.06,96.99,15.4632]
[1644637350924,0.03499682,97.07,96.99,15.4632]
[1644637351127,24.6606,97.078,96.991,26.48276791]
[1644637351329,5.152,97.077,96.991,26.48276791]
[1644637351523,5.152,97.077,96.992,2.38366791]
[1644637351725,35.49427986,97.076,96.992,2.38366791]
[1644637351925,5.152,97.075,96.992,2.38366791]
[1644637352125,35.49427986,97.076,96.992,2.38366791]
[1644637352724,35.49427986,97.076,97.01,15.4597]
[1644637353125,35.49427986,97.076,97.011,2.38366791]
[1644637353827,35.49427986,97.076,97.012,43.52272873]
[1644637354025,35.49427986,97.076,97.02,15.4585]
[1644637354426,5.152,97.088,97.021,2.38366791]
[1644637355428,37.32178042,97.087,97.021,2.38366791]
[1644637355627,5.151,97.086,97.021,2.38366791]
[1644637355827,5.151,97.086,97.03,15.4566]
[1644637356228,5.151,97.086,97.031,2.38366791]
[1644637357331,24.5009,97.085,97.031,2.38366791]
[1644637363462,5.151,97.084,97.031,2.38366791]
[1644637364765,5.151,97.084,97.03,15.4566]
[1644637369373,24.5009,97.085,97.03,15.4566]
[1644637370674,5.151,97.084,97.03,15.4566]
[1644637371974,24.5009,97.085,97.03,15.4566]
[1644637376177,5.151,97.086,97.03,15.4566]
[1644637376375,0.03499682,97.11,97.031,7.53466791]
[1644637376576,29.873,97.118,97.05,15.4533]
[1644637376777,0.03499682,97.11,97.051,24.3834]
[1644637376976,5.15,97.117,97.051,24.3834]
[1644637377176,36.5477972,97.116,97.051,24.3834]
[1644637377376,5.15,97.115,97.051,24.3834]
[1644637378776,5.15,97.115,97.05,15.4533]
[1644637381679,5.15,97.115,97.051,24.8259]
[1644637385890,5.15,97.115,97.06,15.4522]
[1644637387697,5.149,97.117,97.06,15.4522]
[1644637387894,24.722,97.118,97.06,15.4522]
[1644637388395,24.722,97.118,97.061,2.38366791]
[1644637388596,44.94404587,97.117,97.06,15.4522]
[1644637392098,24.722,97.118,97.06,15.4522]
[1644637395016,24.722,97.118,97.061,2.38366791]
[1644637395217,24.722,97.118,97.07,15.4499]
[1644637395821,24.722,97.118,97.071,12.90583412]
[1644637396020,24.722,97.118,97.071,18.05483412]
[1644637396220,24.722,97.118,97.072,2.38366791]
[1644637396421,5.18399682,97.14,97.08,15.4482]
[1644637396624,24.5075,97.138,97.081,5.148]
[1644637396822,24.5075,97.138,97.081,7.53166791]
[1644637397021,24.5075,97.138,97.082,2.38366791]
[1644637397622,24.5075,97.138,97.09,15.4465]
[1644637398424,5.148,97.137,97.09,15.4465]
[1644637398622,24.5075,97.138,97.09,15.4465]
[1644637398923,5.148,97.137,97.09,15.4465]
[1644637399124,24.5075,97.138,97.09,15.4465]
[1644637400130,5.148,97.137,97.09,15.4465]
[1644637402225,0.03499682,97.15,97.091,7.53166791]
[1644637402423,0.03499682,97.17,97.1,15.4428]
[1644637402624,28.6523,97.175,97.1,15.4428]
[1644637402822,0.03499682,97.17,97.1,15.4428]
[1644637403024,5.147,97.169,97.101,37.21086089]
[1644637403227,0.03499682,97.17,97.101,37.21086089]
[1644637403424,5.147,97.169,97.101,37.21086089]
[1644637404228,5.147,97.169,97.11,15.4437]
[1644637404626,5.147,97.173,97.11,15.4437]
[1644637405026,5.147,97.173,97.111,24.4603]
[1644637405628,5.147,97.174,97.12,15.4423]
[1644637405832,5.147,97.172,97.12,15.4423]
[1644637406030,5.146,97.174,97.12,15.4423]
[1644637407328,0.03499682,97.18,97.12,15.4423]
[1644637407329,0.03499682,97.18,97.121,2.38366791]
[1644637407530,0.03499682,97.2,97.13,15.4382]
[1644637407731,0.03499682,97.19,97.13,15.4382]
[1644637407932,0.03499682,97.2,97.13,15.4382]
[1644637408131,5.144,97.196,97.131,15.91721334]
[1644637408334,5.144,97.199,97.131,18.30088125]
[1644637408530,0.03499682,97.2,97.14,15.4384]
[1644637408730,0.03499682,97.22,97.14,15.4384]
[1644637409130,5.144,97.219,97.14,15.4384]
[1644637409334,24.6176,97.218,97.14,15.4384]
[1644637409532,5.144,97.217,97.14,15.4384]
[1644637414136,24.6176,97.218,97.141,5.144]
[1644637414436,5.144,97.216,97.15,15.4364]
[1644637414637,24.6176,97.218,97.15,15.4364]
[1644637415238,24.6176,97.218,97.151,22.5696]
[1644637415438,5.144,97.217,97.16,15.4351]
[1644637415637,5.144,97.217,97.161,37.21086089]
[1644637417238,5.144,97.217,97.17,15.4347]
[1644637418741,5.144,97.217,97.162,24.2714]
[1644637419239,5.144,97.217,97.16,15.436]
[1644637421952,24.6176,97.218,97.16,15.436]
[1644637423349,5.144,97.217,97.16,15.436]
[1644637425250,5.144,97.217,97.161,2.38366791]
[1644637425449,24.1905,97.229,97.161,2.38366791]
[1644637425450,24.1905,97.229,97.17,15.4326]
[1644637426453,59.87541524,97.229,97.17,15.4326]
[1644637426952,24.1905,97.229,97.17,15.4326]
[1644637427351,5.144,97.239,97.17,15.4326]
[1644637427553,5.144,97.239,97.171,32.34776791]
[1644637427754,5.144,97.239,97.19,15.4312]
[1644637428053,36.39315038,97.241,97.191,10.64460345]
[1644637428257,29.8205,97.24,97.191,10.64460345]
[1644637428856,29.8205,97.24,97.19,15.4312]
[1644637433562,29.8205,97.24,97.171,27.20476791]
[1644637434364,29.8205,97.24,97.161,5.143]
[1644637434565,1.42741974,97.235,97.161,5.143]
[1644637434766,14.88,97.22,97.115,1.45967123]
[1644637434964,5.144,97.219,97.115,1.45967123]
[1644637435164,0.03499682,97.21,97.115,1.45967123]
[1644637435387,30.3248,97.2,97.108,1.45967123]
[1644637435588,30.3248,97.2,97.098,1.45967123]
[1644637435589,0.03499682,97.19,97.098,1.45967123]
[1644637435788,5.146,97.189,97.097,37.65257026]
[1644637436086,24.8629,97.188,97.1,1.45967123]
[1644637436287,30.0099,97.188,97.099,3.84333914]
[1644637436488,24.8629,97.188,97.107,1.45967123]
[1644637436692,24.8629,97.188,97.11,16.90247123]
[1644637436693,5.146,97.187,97.11,16.90247123]
[1644637436887,5.146,97.187,97.111,1.45967123]
[1644637437489,0.03499682,97.19,97.112,3.84333914]
[1644637437691,0.03499682,97.2,97.123,1.45967123]
[1644637437891,27.8188,97.207,97.124,1.45967123]
[1644637437892,0.03499682,97.19,97.124,1.45967123]
[1644637438092,5.146,97.199,97.124,2.38366791]
[1644637438293,5.144,97.206,97.124,2.38366791]
[1644637438492,5.146,97.198,97.124,2.38366791]
[1644637438692,5.144,97.206,97.124,2.38366791]
[1644637439793,5.144,97.206,97.14,15.4386]
[1644637440796,5.144,97.206,97.13,15.44]
[1644637441194,5.144,97.206,97.124,2.38366791]
[1644637441397,5.144,97.206,97.113,22.5051]
[1644637441797,5.144,97.206,97.114,39.74136032]
[1644637442895,5.144,97.206,97.12,15.4418]
[1644637443099,6.57141974,97.206,97.12,15.4418]
[1644637443299,1.42741974,97.205,97.12,15.4418]
[1644637443496,5.146,97.204,97.12,15.4418]
[1644637443696,6.57341974,97.204,97.12,15.4418]
[1644637443895,1.42741974,97.204,97.12,15.4418]
[1644637444096,5.146,97.203,97.12,15.4418]
[1644637444895,1.42741974,97.205,97.12,15.4418]
[1644637445096,5.146,97.204,97.12,15.4418]
[1644637445299,5.144,97.205,97.12,15.4418]
[1644637445498,5.144,97.206,97.12,15.4418]
[1644637445699,22.6728,97.207,97.12,15.4418]
[1644637445899,5.144,97.206,97.12,15.4418]
[1644637447603,15.4437,97.2,97.113,22.5051]
[1644637447902,5.146,97.199,97.113,22.5051]
[1644637455112,15.4452,97.19,97.1,15.4455]
[1644637455306,5.146,97.189,97.097,2.38366791]
[1644637455506,5.146,97.189,97.09,1.45967123]
[1644637455507,15.066,97.189,97.079,1.45967123]
[1644637455705,40.00186791,97.189,97.073,1.45967123]
[1644637455904,2.38366791,97.188,97.072,1.45967123]
[1644637456107,5.147,97.187,97.073,38.03731859]
[1644637456405,2.38366791,97.186,97.073,38.03731859]
[1644637456606,2.38366791,97.186,97.074,2.38366791]
[1644637456807,15.4495,97.17,97.08,15.4473]
[1644637457007,71.1936525,97.169,97.08,15.4473]
[1644637457808,71.1936525,97.169,97.08,17.83096791]
[1644637461916,71.1936525,97.169,97.081,1.45967123]
[1644637462120,71.1936525,97.169,97.08,19.29063914]
[1644637462317,71.1936525,97.169,97.082,2.38366791]
[1644637462525,66.0456525,97.169,97.1,15.444]
[1644637462817,23.444,97.187,97.101,25.71216791]
[1644637463316,23.444,97.187,97.102,2.38366791]
[1644637463716,35.3993206,97.186,97.103,15.09075564]
[1644637463918,40.5453206,97.186,97.11,15.4435]
[1644637464318,40.5453206,97.186,97.111,2.38366791]
[1644637465818,40.5453206,97.186,97.12,15.4421]
[1644637469245,40.5453206,97.186,97.121,24.6642]
[1644637470048,40.5453206,97.186,97.098,1.45967123]
[1644637470252,50.9453206,97.186,97.094,2.38366791]
[1644637470445,2.38366791,97.185,97.08,1.45967123]
[1644637470645,1.42741974,97.179,97.073,1.45967123]
[1644637470845,14.88,97.17,97.074,44.26421337]
[1644637471147,5.148,97.169,97.074,44.26421337]
[1644637471347,24.5914,97.168,97.075,1.45967123]
[1644637471545,5.148,97.167,97.075,1.45967123]
[1644637471748,5.148,97.167,97.077,1.45967123]
[1644637471949,5.148,97.167,97.078,23.7545]
[1644637472649,5.148,97.167,97.08,15.4482]
[1644637473246,24.5914,97.168,97.08,17.83186791]
[1644637473648,5.148,97.167,97.08,17.83186791]
[1644637473848,5.148,97.167,97.08,15.4482]
[1644637477051,24.5914,97.168,97.08,15.4482]
[1644637477253,5.148,97.167,97.08,15.4482]
[1644637482855,5.148,97.167,97.085,1.45967123]
[1644637483057,5.148,97.167,97.09,15.4473]
[1644637483656,5.148,97.167,97.091,24.1894]
[1644637490670,24.5914,97.168,97.091,24.1894]
[1644637490869,5.147,97.167,97.1,15.4456]
[1644637491369,24.5914,97.168,97.101,2.38366791]
[1644637491967,24.5914,97.168,97.11,15.444]
[1644637492169,24.5914,97.168,97.111,8.86386086]
[1644637492769,5.147,97.179,97.111,8.86386086]
[1644637492968,5.147,97.179,97.112,22.9642]
[1644637494170,3.647,97.179,97.112,22.9642]
[1644637506319,0.03499682,97.18,97.112,22.9642]
[1644637506515,0.03499682,97.18,97.113,2.38366791]
[1644637507216,0.03499682,97.18,97.113,3.84333914]
[1644637507515,35.3993206,97.186,97.116,1.45967123]
[1644637507915,5.146,97.185,97.12,15.4422]
[1644637508315,5.146,97.185,97.121,2.38366791]
[1644637509318,5.146,97.209,97.121,2.38366791]
[1644637509518,0.03548146,97.21,97.13,15.4399]
[1644637509719,0.03548146,97.21,97.131,24.4737]
[1644637509918,0.03548146,97.21,97.131,26.85736791]
[1644637510119,0.03548146,97.21,97.132,2.38366791]
[1644637510320,0.49955059,97.179,97.133,10.52077397]
[1644637510618,0.49955059,97.179,97.134,2.38366791]
[1644637510819,0.49955059,97.179,97.15,15.4375]
[1644637511623,0.49955059,97.179,97.134,2.38366791]
[1644637511824,0.49955059,97.179,97.125,1.45967123]
[1644637512027,5.146,97.178,97.118,1.45967123]
[1644637512224,5.146,97.178,97.111,24.3384]
[1644637515531,5.64542708,97.178,97.111,24.3384]
[1644637515732,0.49942708,97.178,97.111,24.3384]
[1644637515932,5.146,97.177,97.111,24.3384]
[1644637517134,0.49942708,97.178,97.12,15.4428]
[1644637517536,0.49942708,97.178,97.121,2.38366791]
[1644637518233,5.146,97.177,97.121,2.38366791]
[1644637518833,0.49942708,97.178,97.13,15.4407]
[1644637519036,0.49942708,97.178,97.131,14.5861099]
[1644637519234,0.49942708,97.178,97.131,16.96977781]
[1644637519635,0.49942708,97.178,97.132,2.38366791]
[1644637520237,0.49918005,97.185,97.132,2.38366791]
[1644637520437,0.49918005,97.185,97.14,15.4396]
[1644637525444,30.2036561,97.197,97.14,15.4396]
[1644637526346,30.2036561,97.197,97.141,2.38366791]
[1644637526549,30.2036561,97.197,97.15,15.4377]
[1644637527647,5.6471561,97.197,97.15,15.4377]
[1644637530763,5.146,97.197,97.15,15.4377]
[1644637531366,36.74297993,97.198,97.15,15.4377]
[1644637532464,24.1864,97.197,97.15,15.4377]
[1644637534665,5.144,97.196,97.15,15.4377]
[1644637537173,0.5017734,97.197,97.15,15.4377]
[1644637538776,5.144,97.196,97.15,15.4377]
[1644637540278,0.50152646,97.195,97.15,15.4377]
[1644637540678,5.144,97.194,97.15,15.4377]
[1644637542879,0.50152646,97.195,97.15,15.4377]
[1644637543480,0.50152646,97.195,97.151,2.38366791]
[1644637543681,0.50152646,97.195,97.16,15.4347]
[1644637545681,5.64527951,97.207,97.16,15.4347]
[1644637548686,5.64527951,97.207,97.161,36.24147228]
[1644637549087,0.50127951,97.207,97.161,36.24147228]
[1644637549287,5.144,97.206,97.161,36.24147228]
[1644637550190,5.64688449,97.206,97.161,36.24147228]
[1644637550391,0.50288449,97.206,97.161,36.24147228]
[1644637550588,5.144,97.205,97.161,36.24147228]
[1644637550788,0.50288449,97.206,97.161,36.24147228]
[1644637553395,0.50288449,97.206,97.16,15.4347]
[1644637553594,5.144,97.205,97.16,15.4347]
[1644637553794,22.74,97.204,97.16,15.4347]
[1644637553999,5.144,97.203,97.16,15.4347]
[1644637557417,5.144,97.203,97.161,2.38366791]
[1644637557620,22.74,97.204,97.17,15.4347]
[1644637558018,0.50276104,97.205,97.17,15.4347]
[1644637558218,0.50276104,97.205,97.171,2.38366791]
[1644637559918,0.50276104,97.205,97.18,15.4325]
[1644637560123,23.18139069,97.219,97.18,15.4325]
[1644637560319,23.18139069,97.219,97.181,2.38366791]
[1644637560720,23.18139069,97.219,97.18,15.4325]
[1644637561120,5.144,97.218,97.165,2.38366791]
[1644637561521,23.18139069,97.219,97.165,2.38366791]
[1644637562725,5.144,97.218,97.17,15.4348]
[1644637565627,5.64836562,97.218,97.17,15.4348]
[1644637566029,0.50436562,97.218,97.17,15.4348]
[1644637566231,0.50436562,97.218,97.171,2.38366791]
[1644637566432,0.50436562,97.218,97.18,15.4321]
[1644637566833,0.50436562,97.218,97.18,17.81576791]
[1644637570239,5.144,97.234,97.18,17.81576791]
[1644637573943,24.58312952,97.235,97.18,17.81576791]
[1644637575145,24.58312952,97.235,97.18,15.4321]
[1644637575445,0.50621653,97.233,97.18,15.4321]
[1644637575645,5.143,97.232,97.18,15.4321]
[1644637576746,5.143,97.232,97.181,2.38366791]
[1644637577146,5.143,97.232,97.19,15.4311]
[1644637578748,0.50621653,97.233,97.19,15.4311]
[1644637580150,0.50621653,97.233,97.19,17.81476791]
[1644637580452,24.0779,97.235,97.19,17.81476791]
[1644637580453,24.58386978,97.235,97.19,17.81476791]
[1644637582553,0.50596978,97.235,97.19,17.81476791]
[1644637582751,0.50596978,97.235,97.2,15.428]
[1644637583151,0.50596978,97.235,97.2,17.81166791]
[1644637585354,1.02400846,97.243,97.2,17.81166791]
[1644637585958,1.02400846,97.243,97.2,32.69166791]
[1644637586754,1.02400846,97.243,97.21,15.4229]
[1644637586955,1.02400846,97.243,97.211,5.142]
[1644637587154,1.02400846,97.243,97.211,7.52566791]
[1644637587355,1.02400846,97.243,97.212,2.38366791]
[1644637587657,1.02400846,97.243,97.213,5.142]
[1644637587854,1.02400846,97.243,97.22,15.4221]
[1644637588055,1.02400846,97.243,97.22,53.8158631]
[1644637589055,1.02400846,97.243,97.221,2.38366791]
[1644637589274,1.02400846,97.243,97.23,15.4236]
[1644637590375,1.17410413,97.243,97.23,15.4236]
[1644637590976,1.17410413,97.243,97.231,2.38366791]
[1644637591477,1.17410413,97.243,97.23,15.4236]
[1644637591673,1.17410413,97.243,97.231,2.38366791]
[1644637592073,1.17410413,97.243,97.23,15.4236]
[1644637595586,0.51668159,97.243,97.23,15.4236]
[1644637595780,0.51668159,97.243,97.231,2.38366791]
[1644637596181,0.51668159,97.243,97.23,15.4236]
[1644637596478,0.51668159,97.243,97.231,2.38366791]
[1644637596679,0.51668159,97.243,97.23,15.4236]
[1644637597481,0.51668159,97.243,97.231,2.38366791]
[1644637598284,0.51668159,97.243,97.23,15.4236]
[1644637598690,0.51668159,97.243,97.23,17.80726791]
[1644637599084,0.51668159,97.243,97.23,15.4236]
[1644637600084,0.51668159,97.243,97.221,5.142]
[1644637601084,0.51668159,97.243,97.22,15.4279]
[1644637601886,0.51668159,97.243,97.22,17.81156791]
[1644637602188,0.51668159,97.243,97.22,15.4279]
[1644637603190,39.2018021,97.243,97.22,15.4279]
[1644637603589,0.51668159,97.243,97.22,15.4279]